fUST/lending_fUST_20240521
["ID","MTS","AMOUNT","RATE_DAILY","PERIOD"]
[327575772,1716240646315,-318.00878609,0.000289,2]
[327575773,1716240646324,-239.8,0.0002917,7]
[327575774,1716240646334,-464.09985769,0.0003,30]
[327575775,1716240646345,-886.41112912,0.0003,4]
[327575776,1716240646354,-257.0,0.0003,2]
[327575777,1716240646364,-477.480046,0.0003031,2]
[327575778,1716240646373,-410.29587983,0.00031275,4]
[327575779,1716240646382,-239.8,0.00031304,7]
[327575780,1716240646391,-448.53105221,0.00032,4]
[327575781,1716240646400,-351.29378065,0.00033,4]
[327575782,1716240646409,-472.0,0.00033,2]
[327575783,1716240646419,-239.8,0.00033439,7]
[327575784,1716240646428,-467.93476807,0.00034,4]
[327575785,1716240646436,-1000.0,0.000348,3]
[327575786,1716240646445,-257.0,0.00035,2]
[327575787,1716240646454,-4762.10124516,0.00035,4]
[327575788,1716240646463,-216.15836745,0.00035,4]
[327575789,1716240646474,-154.8915759,0.00035,4]
[327575790,1716240646483,-5504.4714137,0.00035,2]
[327575791,1716240646573,-1332.26751932,0.00035,7]
[327575792,1716240646583,-1533.0,0.00035538,120]
[327575793,1716240646593,-567.5,0.00035538,120]
[327575794,1716240646602,-239.8,0.00035573,15]
[327575795,1716240646611,-1107.6,0.00035606,3]
[327575796,1716240646620,-553.8,0.00035606,3]
[327575798,1716240646629,-1008.98,0.00035615,2]
[327575800,1716240646638,-1008.98,0.00035615,2]
[327575802,1716240646648,-1008.98,0.00035615,2]
[327575804,1716240646657,-1008.98,0.00035615,2]
[327575806,1716240646666,-1008.98,0.00035615,2]
[327575808,1716240646675,-1008.98,0.00035615,2]
[327575810,1716240646683,-1008.98,0.00035615,2]
[327575811,1716240646695,-1008.98,0.00035615,2]
[327575812,1716240646705,-674.480448,0.00035616,120]
[327575813,1716240646714,-477.480046,0.00036236,2]
[327575814,1716240646725,-830.72,0.00036723,3]
[327575816,1716240646734,-2215.2,0.00036976,3]
[327575818,1716240646743,-1107.6,0.00036976,3]
[327575819,1716240646752,-1707.76234616,0.00037,2]
[327575821,1716240646761,-1332.26751932,0.000371,7]
[327575822,1716240646770,-150.516,0.00037329,7]
[327575823,1716240646779,-200.0,0.00037439,120]
[327575824,1716240646788,-2215.19,0.0003752,3]
[327575825,1716240646798,-12744.7276653,0.0003753,2]
[327575826,1716240646806,-150.8642222,0.00037645,2]
[327575827,1716240646815,-239.8,0.00037707,15]
[327575828,1716240646825,-257.0,0.00038,2]
[327575829,1716240646834,-7253.47449962,0.00038,30]
[327575830,1716240646843,-301.7284444,0.00038278,4]
[327575831,1716240646852,-165.245324,0.00038748,2]
[327575832,1716240646861,-276.9,0.0003888,3]
[327575833,1716240646871,-4430.38,0.0003889,3]
[327575834,1716240646880,-603.4568888,0.00038921,7]
[327575835,1716240646890,-1453.38274835,0.000392,11]
[327575836,1716240646899,-500.0,0.00039355,5]
[327575837,1716240646908,-239.8,0.00039841,15]
[327575838,1716240646917,-262.27515122,0.0004,15]
[327575839,1716240646927,-214.01636632,0.0004,4]
[327575840,1716240646936,-1112.48645757,0.0004,120]
[327575841,1716240646945,-553.8,0.0004025,3]
[327575842,1716240646954,-446.1346099,0.00040303,2]
[327575843,1716240646964,-2759.95353885,0.00040713,3]
[327575844,1716240646974,-320.67979357,0.00040822,31]
[327575845,1716240646983,-502.38820838,0.00040822,31]
[327575846,1716240646993,-153.0,0.00040894,2]
[327575847,1716240647002,-153.0,0.00040894,2]
[327575848,1716240647011,-153.0,0.00040894,2]
[327575849,1716240647021,-153.0,0.00040894,2]
[327575850,1716240647031,-4223.25780806,0.00041002,2]
[327575851,1716240647041,-417.22450303,0.00041088,2]
[327575852,1716240647051,-533.21,0.00041095,30]
[327575853,1716240647060,-500.0,0.00041096,31]
[327575854,1716240647070,-500.0,0.00041096,31]
[327575855,1716240647079,-555.89617033,0.00041096,31]
[327575856,1716240647088,-166.81264442,0.00041096,31]
[327575857,1716240647098,-446.9616424,0.00041168,2]
[327575858,1716240647107,-271.6584605,0.00041168,2]
[327575859,1716240647117,-153.0,0.00041168,2]
[327575860,1716240647127,-314.7106668,0.00041168,2]
[327575861,1716240647136,-281.0,0.000413,16]
[327575862,1716240647145,-160.0,0.000413,24]
[327575863,1716240647155,-1453.38274835,0.000413,11]
[327575864,1716240647164,-155467.66503615,0.00041348,8]
[327575865,1716240647174,-533.21,0.00041369,31]
[327575866,1716240647183,-1453.23754076,0.00041492,11]
[327575867,1716240647193,-674.480448,0.00041553,120]
[327575868,1716240647204,-533.21,0.00041643,32]
[327575869,1716240647213,-962.23,0.00041699,7]
[327575870,1716240647225,-962.23,0.00041699,7]
[327575871,1716240647235,-75887.38370817,0.000417,15]
[327575872,1716240647245,-240.86369369,0.000417,4]
[327575873,1716240647256,-167.85969984,0.000417,4]
[327575874,1716240647270,-3686.53962227,0.000417,4]
[327575875,1716240647516,-1347.95892635,0.000417,4]
[327575876,1716240647527,-671.7887604,0.000417,2]
[327575877,1716240647537,-5575.74250794,0.000417,4]
[327575878,1716240647548,-1164.79319326,0.000417,4]
[327575879,1716240647558,-219.78624987,0.000417,4]
[327575880,1716240647568,-2629.50704645,0.000418,30]
[327575881,1716240647578,-21040.92605794,0.00041843,2]
[327575882,1716240647588,-533.21,0.00041917,33]
[327575883,1716240647597,-239.8,0.00041975,30]
[327575884,1716240647606,-445.97377878,0.00042,120]
[327575885,1716240647616,-6034.0,0.00042,3]
[327575886,1716240647626,-154.81422293,0.00042,4]
[327575887,1716240647635,-477.480046,0.00042163,2]
[327575888,1716240647645,-533.21,0.00042191,34]
[327575889,1716240647654,-160.0,0.00042337,3]
[327575890,1716240647663,-600.0,0.00042345,2]
[327575891,1716240647673,-1326.63976477,0.00042398,48]
[327575892,1716240647682,-152.7044776,0.00042398,30]
[327575893,1716240647692,-440.63488133,0.0004243,30]
[327575894,1716240647701,-533.21,0.00042465,35]
[327575895,1716240647711,-152.7044776,0.00042478,30]
[327575896,1716240647722,-151.40188392,0.00042492,30]
[327575897,1716240647732,-1000.0,0.000425,2]
[327575898,1716240647741,-178.5,0.000425,20]
[327575899,1716240647750,-173.51976092,0.00042517,30]
[327575900,1716240647760,-440.63488133,0.00042523,30]
[327575901,1716240647769,-151.40188392,0.00042557,30]
[327575902,1716240647779,-212.12770649,0.00042569,30]
[327575903,1716240647788,-440.63488133,0.00042595,30]
[327575904,1716240647798,-212.12770649,0.0004262,30]
[327575905,1716240647807,-151.40188392,0.00042622,30]
[327575906,1716240647816,-166.9646569,0.00042625,4]
[327575907,1716240647911,-440.63488133,0.00042625,30]
[327575908,1716240647921,-440.63488133,0.00042628,30]
[327575909,1716240647931,-152.7044776,0.00042664,30]
[327575910,1716240647940,-507.0,0.00042684,30]
[327575911,1716240647949,-533.21,0.00042739,36]
[327575912,1716240647959,-212.12770649,0.00042749,30]
[327575913,1716240647971,-152.7044776,0.00042765,30]
[327575914,1716240647980,-600.0,0.00042786,2]
[327575915,1716240647990,-212.12770649,0.00042786,30]
[327575916,1716240647999,-151.40188392,0.00042788,30]
[327575917,1716240648008,-440.63488133,0.00042792,30]
[327575918,1716240648018,-876.62665745,0.000428,60]
[327575919,1716240648027,-816.0,0.000428,18]
[327575920,1716240648036,-853.0,0.000428,18]
[327575921,1716240648045,-212.12770649,0.00042893,30]
[327575922,1716240648055,-200.30832996,0.00042896,30]
[327575923,1716240648064,-200.30832996,0.00042899,30]
[327575924,1716240648074,-212.12770649,0.00042907,30]
[327575925,1716240648083,-440.63488133,0.00042918,30]
[327575926,1716240648093,-212.12770649,0.00042975,30]
[327575927,1716240648102,-2000.0,0.00043,10]
[327575928,1716240648111,-2000.0,0.00043,10]
[327575929,1716240648120,-2000.0,0.00043,10]
[327575930,1716240648130,-1000.0,0.00043,10]
[327575931,1716240648139,-1000.0,0.00043,10]
[327575932,1716240648149,-1000.0,0.00043,10]
[327575933,1716240648163,-1000.0,0.00043,10]
[327575934,1716240648176,-27351.55359036,0.00043,2]
[327575935,1716240648187,-3025.53345853,0.00043,30]
[327575936,1716240648197,-1000.0,0.00043,43]
[327575937,1716240648207,-293.72615457,0.00043,120]
[327575938,1716240648218,-5626.7482016,0.00043,30]
[327575939,1716240648228,-154.92296699,0.0004301,30]
[327575940,1716240648237,-533.21,0.00043013,37]
[327575941,1716240648247,-154.92296699,0.00043018,30]
[327575942,1716240648256,-151.40188392,0.0004303,30]
[327575943,1716240648267,-212.12770649,0.00043032,30]
[327575944,1716240648277,-440.63488133,0.00043036,30]
[327575945,1716240648287,-212.12770649,0.00043038,30]
[327575946,1716240648296,-158.57750215,0.00043052,30]
[327575947,1716240648306,-154.92296699,0.00043058,30]
[327575948,1716240648316,-154.92296699,0.00043076,30]
[327575949,1716240648325,-440.63488133,0.00043084,30]
[327575950,1716240648335,-154.92296699,0.00043123,30]
[327575951,1716240648345,-160.0,0.00043134,4]
[327575952,1716240648356,-440.63488133,0.00043142,30]
[327575953,1716240648366,-440.63488133,0.00043143,30]
[327575954,1716240648375,-212.12770649,0.00043195,30]
[327575955,1716240648385,-212.12770649,0.00043207,30]
[327575956,1716240648394,-600.0,0.00043227,2]
[327575957,1716240648404,-212.12770649,0.0004324,30]
[327575958,1716240648414,-440.63488133,0.00043248,30]
[327575959,1716240648423,-154.92296699,0.00043251,30]
[327575960,1716240648432,-154.92296699,0.00043278,30]
[327575961,1716240648442,-533.21,0.00043287,38]
[327575962,1716240648451,-440.63488133,0.00043288,30]
[327575963,1716240648461,-10690.67809226,0.000433,7]
[327575964,1716240648472,-212.12770649,0.00043377,30]
[327575965,1716240648481,-151.40188392,0.00043383,30]
[327575966,1716240648491,-158.57750215,0.00043386,30]
[327575967,1716240648500,-152.7044776,0.00043395,30]
[327575968,1716240648521,-1574.49797738,0.000434,15]
[327575969,1716240648537,-212.12770649,0.00043424,30]
[327575970,1716240648557,-152.7044776,0.00043427,30]
[327575971,1716240648576,-212.12770649,0.00043432,30]
[327575972,1716240648597,-158.57750216,0.00043479,30]
[327575973,1716240648615,-10000.0,0.000435,45]
[327575974,1716240648633,-533.21,0.00043561,39]
[327575975,1716240648648,-152.7044776,0.00043567,30]
[327575976,1716240648665,-154.92296699,0.0004357,30]
[327575977,1716240648683,-152.7044776,0.00043612,30]
[327575978,1716240648703,-600.0,0.00043668,2]
[327575979,1716240648718,-320240.71378519,0.00043684,2]
[327575980,1716240648734,-1000.0,0.00043698,2]
[327575981,1716240648749,-1000.0,0.00043698,2]
[327575982,1716240648765,-1000.0,0.00043698,2]
[327575983,1716240648778,-1022.94638414,0.00043698,2]
[327575984,1716240648791,-151.40188392,0.00043699,30]
[327575985,1716240648807,-212.12770649,0.00043723,30]
[327575986,1716240648821,-440.63488133,0.00043744,30]
[327575987,1716240648834,-212.12770649,0.00043754,30]
[327575988,1716240648848,-440.63488133,0.0004377,30]
[327575989,1716240648862,-506.0,0.000438,13]
[327575990,1716240648877,-2000.0,0.000438,19]
[327575991,1716240648891,-2000.0,0.000438,19]
[327575992,1716240648905,-160.0,0.000438,29]
[327575993,1716240648919,-179.25,0.000438,21]
[327575994,1716240648934,-212.12770649,0.0004383,30]
[327575995,1716240648948,-500.0,0.00043835,40]
[327575996,1716240648963,-500.0,0.00043835,40]
[327575997,1716240648979,-501.06382033,0.00043835,40]
[327575998,1716240648995,-504.80875627,0.00043835,2]
[327575999,1716240649009,-504.57188163,0.00043835,40]
[327576000,1716240649024,-309.09343938,0.00043835,40]
[327576001,1716240649039,-509.1645672,0.00043835,40]
[327576002,1716240649053,-500.0,0.00043835,40]
[327576003,1716240649068,-169.09726661,0.00043835,40]
[327576004,1716240649082,-500.0,0.00043835,40]
[327576005,1716240649096,-500.0,0.00043835,40]
[327576006,1716240649110,-524.10611979,0.00043835,40]
[327576007,1716240649124,-500.0,0.00043835,40]
[327576008,1716240649138,-500.0,0.00043835,40]
[327576009,1716240649152,-500.0,0.00043835,40]
[327576010,1716240649167,-500.0,0.00043835,40]
[327576011,1716240649181,-500.0,0.00043835,40]
[327576012,1716240649195,-501.69221528,0.00043835,40]
[327576013,1716240649210,-500.0,0.00043835,40]
[327576014,1716240649227,-1000.72,0.00043835,40]
[327576015,1716240649242,-151.0,0.00043835,7]
[327576016,1716240649258,-151.0,0.00043835,7]
[327576017,1716240649275,-400.09391473,0.00043835,40]
[327576018,1716240649291,-500.4929191,0.00043835,40]
[327576019,1716240649303,-500.0,0.00043835,40]
[327576020,1716240649314,-500.0,0.00043835,40]
[327576021,1716240649324,-500.0,0.00043835,40]
[327576022,1716240649333,-500.79706091,0.00043835,40]
[327576023,1716240649346,-500.0,0.00043835,40]
[327576024,1716240649356,-500.0,0.00043835,40]
[327576025,1716240649365,-823.23,0.00043835,40]
[327576026,1716240649375,-500.0,0.00043835,40]
[327576027,1716240649385,-500.0,0.00043835,40]
[327576028,1716240649571,-646.49073318,0.00043835,40]
[327576029,1716240649584,-500.0,0.00043835,40]
[327576030,1716240649594,-309.59752322,0.00043835,40]
[327576031,1716240649603,-507.52242819,0.00043835,40]
[327576032,1716240649612,-500.0,0.00043835,40]
[327576033,1716240649622,-615.76000615,0.00043835,40]
[327576034,1716240649632,-500.0,0.00043835,40]
[327576035,1716240649641,-500.0,0.00043835,40]
[327576036,1716240649650,-500.0,0.00043835,40]
[327576037,1716240649659,-608.18,0.00043835,40]
[327576038,1716240649669,-830.37,0.00043835,40]
[327576039,1716240649678,-500.0,0.00043835,40]
[327576040,1716240649688,-476.93679426,0.00043835,40]
[327576041,1716240649697,-500.0,0.00043835,40]
[327576042,1716240649706,-503.37965649,0.00043835,40]
[327576043,1716240649715,-500.0,0.00043835,40]
[327576044,1716240649726,-884.54,0.00043835,40]
[327576045,1716240649735,-500.0,0.00043835,40]
[327576046,1716240649745,-500.0,0.00043835,40]
[327576047,1716240649754,-500.0,0.00043835,40]
[327576048,1716240649763,-500.0,0.00043835,40]
[327576049,1716240649773,-500.0,0.00043835,40]
[327576050,1716240649782,-509.96316029,0.00043835,40]
[327576051,1716240649792,-500.0,0.00043835,40]
[327576052,1716240649801,-500.0,0.00043835,40]
[327576053,1716240649811,-500.0,0.00043835,40]
[327576054,1716240649820,-500.0,0.00043835,2]
[327576055,1716240649829,-640.90668797,0.00043835,40]
[327576056,1716240649839,-500.0,0.00043835,40]
[327576057,1716240649848,-500.0,0.00043835,7]
[327576058,1716240649857,-500.0,0.00043835,40]
[327576059,1716240649866,-500.0,0.00043835,40]
[327576060,1716240649875,-500.0,0.00043835,40]
[327576061,1716240649885,-334.27053557,0.00043835,40]
[327576062,1716240649895,-500.0,0.00043835,40]
[327576063,1716240649904,-500.0,0.00043835,40]
[327576064,1716240649914,-500.0,0.00043835,40]
[327576065,1716240649923,-3512.05,0.00043835,7]
[327576066,1716240649932,-500.0,0.00043835,40]
[327576067,1716240649941,-500.0,0.00043835,40]
[327576068,1716240649950,-500.0,0.00043835,40]
[327576069,1716240649960,-286.286796,0.00043835,7]
[327576070,1716240649970,-286.286796,0.00043835,7]
[327576071,1716240649980,-533.21,0.00043835,40]
[327576072,1716240649990,-286.286796,0.00043835,7]
[327576073,1716240649999,-286.286796,0.00043835,7]
[327576074,1716240650008,-500.0,0.00043835,40]
[327576075,1716240650018,-500.0,0.00043835,7]
[327576076,1716240650027,-500.0,0.00043835,40]
[327576077,1716240650036,-500.0,0.00043835,40]
[327576078,1716240650045,-500.0,0.00043835,40]
[327576079,1716240650055,-500.0,0.00043835,40]
[327576080,1716240650065,-500.0,0.00043835,40]
[327576081,1716240650075,-500.0,0.00043835,40]
[327576082,1716240650084,-238.13447686,0.00043835,40]
[327576083,1716240650094,-654.58,0.00043835,40]
[327576084,1716240650103,-500.0,0.00043835,40]
[327576085,1716240650113,-500.0,0.00043835,40]
[327576086,1716240650122,-500.0,0.00043835,40]
[327576087,1716240650131,-500.0,0.00043835,40]
[327576088,1716240650140,-500.0,0.00043835,40]
[327576089,1716240650149,-500.0,0.00043835,40]
[327576090,1716240650158,-159.49993771,0.00043835,40]
[327576091,1716240650167,-500.0,0.00043835,40]
[327576092,1716240650177,-500.0,0.00043835,40]
[327576093,1716240650186,-1214.46,0.00043835,40]
[327576094,1716240650195,-500.0,0.00043835,40]
[327576095,1716240650204,-502.6265869,0.00043835,40]
[327576096,1716240650214,-500.0,0.00043835,40]
[327576097,1716240650226,-500.0,0.00043835,40]
[327576098,1716240650235,-500.0,0.00043835,40]
[327576099,1716240650245,-503.79389035,0.00043835,40]
[327576100,1716240650255,-502.92225272,0.00043835,40]
[327576101,1716240650267,-500.0,0.00043835,40]
[327576102,1716240650278,-500.0,0.00043835,40]
[327576103,1716240650287,-547.67,0.00043835,40]
[327576104,1716240650296,-182.04441726,0.00043835,40]
[327576105,1716240650306,-500.0,0.00043835,40]
[327576106,1716240650315,-500.0,0.00043835,40]
[327576107,1716240650324,-153.60183742,0.00043835,40]
[327576108,1716240650333,-500.0,0.00043835,40]
[327576109,1716240650344,-500.0,0.00043835,40]
[327576110,1716240650355,-500.0,0.00043835,40]
[327576111,1716240650365,-500.0,0.00043835,40]
[327576112,1716240650374,-500.0,0.00043835,40]
[327576113,1716240650385,-500.0,0.00043835,40]
[327576114,1716240650395,-500.0,0.00043835,40]
[327576115,1716240650404,-500.0,0.00043835,2]
[327576116,1716240650414,-500.0,0.00043835,40]
[327576117,1716240650424,-500.0,0.00043835,40]
[327576118,1716240650433,-500.0,0.00043835,20]
[327576119,1716240650443,-642.89628404,0.00043835,40]
[327576120,1716240650453,-500.0,0.00043835,40]
[327576121,1716240650462,-500.0,0.00043835,40]
[327576122,1716240650474,-505.83843285,0.00043835,40]
[327576123,1716240650483,-513.53949834,0.00043835,40]
[327576124,1716240650492,-500.0,0.00043835,40]
[327576125,1716240650501,-500.0,0.00043835,40]
[327576126,1716240650510,-1383.23,0.00043835,40]
[327576127,1716240650519,-500.0,0.00043835,40]
[327576128,1716240650529,-540.8,0.00043835,40]
[327576129,1716240650539,-500.0,0.00043835,40]
[327576130,1716240650548,-984.12,0.00043835,40]
[327576131,1716240650557,-500.0,0.00043835,40]
[327576132,1716240650567,-862.78,0.00043835,40]
[327576133,1716240650576,-505.40075909,0.00043835,40]
[327576134,1716240650586,-500.0,0.00043835,40]
[327576135,1716240650595,-933.51,0.00043835,40]
[327576136,1716240650604,-500.0,0.00043835,40]
[327576137,1716240650613,-500.0,0.00043835,40]
[327576138,1716240650622,-608.54,0.00043835,40]
[327576139,1716240650631,-500.0,0.00043835,40]
[327576140,1716240650640,-500.0,0.00043835,40]
[327576141,1716240650649,-500.0,0.00043835,40]
[327576142,1716240650658,-547.15985234,0.00043835,40]
[327576143,1716240650667,-500.0,0.00043835,40]
[327576144,1716240650676,-1427.37,0.00043835,40]
[327576145,1716240650685,-500.0,0.00043835,2]
[327576146,1716240650694,-500.0,0.00043835,40]
[327576147,1716240650703,-500.0,0.00043835,40]
[327576148,1716240650712,-500.0,0.00043835,40]
[327576149,1716240650724,-500.0,0.00043835,40]
[327576150,1716240650734,-503.17581467,0.00043835,40]
[327576151,1716240650743,-501.02658874,0.00043835,40]
[327576152,1716240650752,-500.0,0.00043835,2]
[327576153,1716240650761,-500.0,0.00043835,40]
[327576154,1716240650771,-500.0,0.00043835,40]
[327576155,1716240650780,-501.1014136,0.00043835,40]
[327576156,1716240650789,-500.0,0.00043835,40]
[327576157,1716240650799,-548.13,0.00043835,40]
[327576158,1716240650809,-1000.0,0.00043835,40]
[327576159,1716240650818,-500.0,0.00043835,40]
[327576160,1716240650828,-529.29545396,0.00043835,40]
[327576161,1716240650837,-500.0,0.00043835,40]
[327576162,1716240650846,-500.0,0.00043835,40]
[327576163,1716240650855,-228.619611,0.00043835,7]
[327576164,1716240650865,-228.619611,0.00043835,7]
[327576165,1716240650874,-1304.97,0.00043835,40]
[327576166,1716240650883,-591.6073151,0.00043835,40]
[327576167,1716240650892,-500.0,0.00043835,40]
[327576168,1716240650901,-228.619611,0.00043835,7]
[327576169,1716240650911,-228.619611,0.00043835,7]
[327576170,1716240650920,-500.0,0.00043835,40]
[327576171,1716240650929,-500.0,0.00043835,40]
[327576172,1716240650939,-500.0,0.00043835,40]
[327576173,1716240650948,-962.09,0.00043835,40]
[327576174,1716240650957,-930.82,0.00043835,40]
[327576175,1716240650966,-500.0,0.00043835,40]
[327576176,1716240650978,-270.22035159,0.00043835,40]
[327576177,1716240650987,-500.0,0.00043835,40]
[327576178,1716240650996,-523.86694167,0.00043835,40]
[327576179,1716240651004,-504.92118705,0.00043835,40]
[327576180,1716240651013,-853.67,0.00043835,40]
[327576181,1716240651023,-500.0,0.00043835,40]
[327576182,1716240651032,-500.0,0.00043835,40]
[327576183,1716240651041,-500.0,0.00043835,40]
[327576184,1716240651051,-302.16748033,0.00043835,40]
[327576185,1716240651060,-300.0,0.00043835,7]
[327576186,1716240651069,-500.0,0.00043835,40]
[327576187,1716240651078,-500.0,0.00043835,40]
[327576188,1716240651088,-1297.31,0.00043835,40]
[327576189,1716240651097,-1297.31,0.00043835,41]
[327576190,1716240651107,-1297.31,0.00043835,42]
[327576191,1716240651117,-1297.31,0.00043835,43]
[327576192,1716240651126,-207.49128744,0.00043835,40]
[327576193,1716240651135,-1297.31,0.00043835,44]
[327576194,1716240651145,-1297.31,0.00043835,45]
[327576195,1716240651154,-1297.31,0.00043835,46]
[327576196,1716240651163,-1297.31,0.00043835,47]
[327576197,1716240651172,-1297.31,0.00043835,48]
[327576198,1716240651182,-1297.31,0.00043835,49]
[327576199,1716240651191,-1297.31,0.00043835,50]
[327576200,1716240651201,-1297.31,0.00043835,51]
[327576201,1716240651211,-1297.31,0.00043835,52]
[327576202,1716240651224,-1297.31,0.00043835,53]
[327576203,1716240651233,-1297.31,0.00043835,54]
[327576204,1716240651242,-1297.31,0.00043835,55]
[327576205,1716240651251,-1297.31,0.00043835,56]
[327576206,1716240651261,-1297.31,0.00043835,57]
[327576207,1716240651272,-1297.31,0.00043835,58]
[327576208,1716240651282,-1297.31,0.00043835,59]
[327576209,1716240651291,-1297.31,0.00043835,59]
[327576210,1716240651300,-1297.31,0.00043835,59]
[327576211,1716240651311,-1297.31,0.00043835,59]
[327576212,1716240651320,-1297.44081897,0.00043835,59]
[327576213,1716240651330,-332.19937323,0.00043835,40]
[327576214,1716240651339,-500.0,0.00043835,40]
[327576215,1716240651350,-500.0,0.00043835,40]
[327576216,1716240651360,-500.0,0.00043835,40]
[327576217,1716240651369,-500.0,0.00043835,40]
[327576218,1716240651378,-500.0,0.00043835,40]
[327576219,1716240651388,-510.16,0.00043835,40]
[327576220,1716240651397,-500.0,0.00043835,40]
[327576221,1716240651406,-500.0,0.00043835,40]
[327576222,1716240651416,-500.0,0.00043835,40]
[327576223,1716240651424,-500.0,0.00043835,40]
[327576224,1716240651434,-612.12,0.00043835,40]
[327576225,1716240651443,-500.0,0.00043835,40]
[327576226,1716240651452,-500.0,0.00043835,40]
[327576227,1716240651461,-500.0,0.00043835,40]
[327576228,1716240651472,-500.0,0.00043835,40]
[327576229,1716240651481,-500.0,0.00043835,40]
[327576230,1716240651490,-500.0,0.00043835,40]
[327576231,1716240651499,-500.0,0.00043835,40]
[327576232,1716240651508,-500.0,0.00043835,40]
[327576233,1716240651518,-500.0,0.00043835,40]
[327576234,1716240651527,-914.01,0.00043835,40]
[327576235,1716240651537,-500.0,0.00043835,40]
[327576236,1716240651546,-500.0,0.00043835,40]
[327576237,1716240651555,-500.0,0.00043835,40]
[327576238,1716240651563,-1265.89,0.00043835,40]
[327576239,1716240651573,-500.0,0.00043835,2]
[327576240,1716240651583,-529.11,0.00043835,30]
[327576241,1716240651593,-500.0,0.00043835,40]
[327576242,1716240651697,-507.19,0.00043835,40]
[327576243,1716240651709,-500.0,0.00043835,40]
[327576244,1716240651719,-500.0,0.00043835,40]
[327576245,1716240651729,-500.0,0.00043835,40]
[327576246,1716240651738,-1125.93,0.00043835,40]
[327576247,1716240651747,-707.81,0.00043835,40]
[327576248,1716240651756,-521.7770984,0.00043835,40]
[327576249,1716240651765,-1093.58,0.00043835,40]
[327576250,1716240651775,-500.0,0.00043835,40]
[327576251,1716240651784,-518.81379343,0.00043835,40]
[327576252,1716240651794,-829.57,0.00043835,40]
[327576253,1716240651803,-500.0,0.00043835,40]
[327576254,1716240651812,-500.0,0.00043835,40]
[327576255,1716240651821,-1043.2,0.00043835,40]
[327576256,1716240651830,-251.7646059,0.00043835,40]
[327576257,1716240651839,-543.82,0.00043835,40]
[327576258,1716240651848,-500.0,0.00043835,40]
[327576259,1716240651857,-510.73877322,0.00043835,40]
[327576260,1716240651866,-500.0,0.00043835,40]
[327576261,1716240651875,-500.0,0.00043835,40]
[327576262,1716240651884,-500.0,0.00043835,40]
[327576263,1716240651893,-1863.04,0.00043835,40]
[327576264,1716240651902,-577.27,0.00043835,40]
[327576265,1716240651911,-1000.0,0.00043835,40]
[327576266,1716240651921,-500.0,0.00043835,40]
[327576267,1716240651929,-500.0,0.00043835,40]
[327576268,1716240651938,-500.0,0.00043835,40]
[327576269,1716240651948,-569.8,0.00043835,40]
[327576270,1716240651957,-500.0,0.00043835,40]
[327576271,1716240651967,-500.0,0.00043835,40]
[327576272,1716240651977,-500.0,0.00043835,40]
[327576273,1716240651986,-511.75978719,0.00043835,40]
[327576274,1716240651995,-560.63,0.00043835,40]
[327576275,1716240652005,-500.0,0.00043835,40]
[327576276,1716240652014,-500.0,0.00043835,40]
[327576277,1716240652023,-500.0,0.00043835,40]
[327576278,1716240652032,-500.0,0.00043835,40]
[327576279,1716240652041,-500.0,0.00043835,40]
[327576280,1716240652050,-516.86519461,0.00043835,40]
[327576281,1716240652060,-500.0,0.00043835,40]